Cogmind - Beta 12 --- EXPLORER MODE // 2023.03.27 @ 05:49:45 Player: Spark774 Result: Self-destructed Performance ------------- Evolutions (1) 500 Regions Visited (2) 400 Robots Destroyed (19) 95 Value Destroyed (441) 441 Prototype IDs (0) 0 Alien Tech Used (0) 0 Bonus (0) 0 TOTAL SCORE: 1436 Bonus ------- None Cogmind --------- Core Integrity 353/400 Matter 288/300 Energy 17/250 System Corruption 0% Temperature Danger (440) Movement Walking (120) Location -9/Materials Parts ------- > --- POWER (1) -------- Ion Engine > --- PROPULSION (3) --- Carbon-fiber Leg Carbon-fiber Leg Carbon-fiber Leg > --- UTILITY (4) ------ Heat Sink Large Storage Unit Improved Terrain Scanner Hardened Light Armor Plating > --- WEAPON (2) ------- Heavy Particle Cannon Heavy Particle Cannon > --- INVENTORY (15) --- Aluminum Leg Aluminum Leg Aluminum Leg Aluminum Leg Carbon-fiber Leg Heat Sink Disposable Heat Sink Medium Storage Unit Large Matter Pod (150) Signal Interpreter Improved Terrain Scanner Hardened Light Armor Plating Hardened Light Armor Plating Heavy Particle Cannon Peak State ------------ > --- POWER ------------ Ion Engine > --- PROPULSION ------- Carbon-fiber Leg Carbon-fiber Leg Carbon-fiber Leg > --- UTILITY ---------- Heat Sink Disposable Heat Sink Large Storage Unit Improved Terrain Scanner > --- WEAPON ----------- Heavy Particle Cannon Heavy Particle Cannon > --- INVENTORY -------- Ion Engine Aluminum Leg Aluminum Leg Aluminum Leg Aluminum Leg Carbon-fiber Leg Heat Sink Medium Storage Unit Large Matter Pod Signal Interpreter Improved Terrain Scanner Hardened Light Armor Plating Hardened Light Armor Plating Hardened Light Armor Plating Heavy Particle Cannon [Rating: 25] Favorites ----------- Power Ion Engine Engine Ion Engine Propulsion Light Treads Treads Light Treads Leg Carbon-fiber Leg Utility Signal Interpreter Device Structural Scanner Storage Large Storage Unit Processor Signal Interpreter Protection Hardened Light Armor Plating Weapon Medium Laser Energy Gun Medium Laser Energy Cannon Heavy Particle Cannon Build | -11 -10 -9 ------- Run | Jun Mat Mat Slots Evolved 3 | . 1 2 Power . | . . . Propulsion 1 | . . 1 Utility 2 | . 1 1 Weapon . | . . . Parts Attached 21 | 7 2 12 Power 2 | 1 . 1 Engine 2 | 1 . 1 Core . | . . . Reactor . | . . . Propulsion 6 | 2 . 4 Treads 3 | 2 . 1 Leg 3 | . . 3 Wheel . | . . . Hover . | . . . Flight . | . . . Utility 8 | 2 2 4 Device 4 | . 1 3 Storage 2 | 1 1 . Processor 1 | 1 . . Hackware . | . . . Protection 1 | . . 1 Artifact . | . . . Weapon 5 | 2 . 3 Energy Gun 3 | 2 . 1 Energy Cannon 2 | . . 2 Ballistic Gun . | . . . Ballistic Cannon . | . . . Launcher . | . . . Special Weapon . | . . . Impact Weapon . | . . . Slashing Weapon . | . . . Piercing Weapon . | . . . Special Melee Weapon . | . . . Unidentified Prototypes . | . . . Parts Lost 1 | . . 1 Power 1 | . . 1 Propulsion . | . . . Utility . | . . . Weapon . | . . . Highest Loss Streak 1 | . . 1 To Critical Strikes . | . . . Average Slot Usage (%) 94 | . 98 92 Engine 10 | . 12 9 Treads 15 | . 25 8 Leg 10 | . . 17 Device 10 | . 2 15 Storage 14 | . 20 10 Processor 9 | . 12 8 Protection 1 | . . 1 Energy Gun 15 | . 25 8 Energy Cannon 6 | . . 11 Naked Turns . | . . . Heaviest Build 44 | 18 38 44 Greatest Support 60 | 40 40 60 Greatest Overweight (x) 1 | 1 . 1 Average Overweight (x) . | . . . Largest Inventory Capacity 15 | 10 15 15 Average Capacity 13 | 7 14 15 Most Carried 15 | 7 12 15 Average Carried 11 | 4 9 13 Final Capacity 15 | 10 15 15 Final Carried 14 | 7 12 14 Class Distribution -------------------- 100% | Hacker-Mutant Dominant Class ---------------- Hacker-Mutant | -10/Materials Hacker-Mutant | -9/Materials Resources | -11 -10 -9 ----------- Run | Jun Mat Mat Matter Collected 543 | 228 67 248 Remotely . | . . . Salvage Created 641 | . 266 375 Parts 31 | . 14 17 Haulers Intercepted 1 | . . 1 Recyclers Shooed . | . . . Parts Field Recycled . | . . . Retrieved Matter . | . . . Parts Self-Destructed . | . . . Prevented . | . . . Kills | -11 -10 -9 ------- Run | Jun Mat Mat Combat Hostiles Destroyed 15 | . 5 10 Guns 6 | . 4 2 Cannons 8 | . . 8 Classes Destroyed 6 | . 4 2 Hauler 1 | . . 1 Recycler 1 | . 1 . Watcher 2 | . 2 . Swarmer 7 | . 2 5 Grunt 5 | . 3 2 Sentry 3 | . . 3 Best Kill Streak 5 | . 4 5 Combat Bots Only 4 | . 3 4 Max Kills in Single Turn 2 | . 2 1 Gunslinging 1 | . 1 . Exploded . | . . . Melee . | . . . Uniques/NPCs Destroyed . | . . . Combat | -11 -10 -9 -------- Run | Jun Mat Mat Damage Taken 510 | . 114 396 Core 107 | . 60 47 Absorbed by Shields . | . . . Core Remaining (%) 88 | 100 76 . Volleys Fired 47 | . 20 27 Largest 2 | . 2 2 Hottest 150 | . 90 150 Shots Fired 94 | . 40 54 Gun 62 | . 40 22 Cannon 32 | . . 32 Launcher . | . . . Special . | . . . Kinetic . | . . . Thermal 94 | . 40 54 Explosive . | . . . Electromagnetic . | . . . Robot Hit Streak 40 | . 39 40 Robot Miss Streak 1 | . . 1 Penetration Max . | . . . Secondary Targets 1 | . 1 . Max Gunslinging Chain 1 | . 1 . Shots Hit Robots 83 | . 39 44 Core Hits 28 | . 14 14 Critical Kills . | . . . Critical Parts Destroyed . | . . . Critical Strikes 4 | . 3 1 Burn 4 | . 3 1 Melee Attacks . | . . . Impact . | . . . Slashing . | . . . Piercing . | . . . Sneak Attacks . | . . . Combat Hostiles . | . . . Follow-up Attacks . | . . . Damage Inflicted 1371 | . 458 913 Guns 671 | . 458 213 Cannons 700 | . . 700 Explosions . | . . . Melee . | . . . Ramming . | . . . Kinetic . | . . . Thermal 1371 | . 458 913 Explosive . | . . . Electromagnetic . | . . . Impact . | . . . Slashing . | . . . Piercing . | . . . Highest Corruption 1 | . 1 . Average Corruption 1 | . 1 . Corruption Purged . | . . . Corruption Blocked . | . . . Overload Shots . | . . . Overflow Damage 40 | . . 40 Projectiles 40 | . . 40 Explosions . | . . . Melee . | . . . Knockbacks . | . . . Impact . | . . . Kinetic . | . . . Secondary . | . . . Self-Inflicted Damage . | . . . Shots . | . . . Rammed . | . . . Targets Rammed . | . . . Kicked . | . . . Crushed . | . . . Highest Temperature 459 | . 267 459 Average Temperature 145 | . 108 175 Received Heat Transfer 291 | . 93 198 Effects 6 | . . 6 Shutdowns 1 | . . 1 Energy Bleed 1 | . . 1 Damage (major) 4 | . . 4 Siege Activations . | . . . Robots Corrupted . | . . . Combat Hostiles . | . . . Parts Fried . | . . . Impact Corruptions . | . . . Robots Melted 1 | . 1 . Combat Hostiles 1 | . 1 . Parts Melted 13 | . 6 7 Heat Transferred 3129 | . 1437 1692 Parts Sabotaged . | . . . Parts Stolen . | . . . Parts Stripped . | . . . Power Chain Reactions . | . . . Missiles Intercepted . | . . . Alert | -11 -10 -9 ------- Run | Jun Mat Mat Peak Influence 226 | . 194 226 Initial 58 | . . 58 Average 90 | . 103 101 Maximum Alert Level 1 | . . 1 Low Security (%) 99 | 100 100 98 Level 1 . | . . 1 Level 2 . | . . . Level 3 . | . . . Level 4 . | . . . Level 5 . | . . . High Security . | . . . Max Security . | . . . Squads Dispatched 2 | . . 2 Investigation . | . . . Extermination . | . . . Reinforcement 2 | . . 2 Assault . | . . . Garrison . | . . . Intercept . | . . . Searches Triggered . | . . . Construction Impeded . | . . . Haulers Reinforced . | . . . Active Scanning Responses . | . . . Cargo Convoy Interrupts . | . . . Stealth | -11 -10 -9 --------- Run | Jun Mat Mat Distress Signals 1 | . . 1 Communications Jammed . | . . . Distress Signals . | . . . Times Spotted 24 | . 8 16 Peak Tracking Total 5 | . 2 5 Tactical Retreats 3 | . 1 2 Traps | -11 -10 -9 ------- Run | Jun Mat Mat Traps Triggered 3 | . 3 . Indirectly . | . . . Trap Hack Attempts . | . . . Triggered . | . . . Disarmed . | . . . Reprogrammed . | . . . Reused . | . . . Traps Extracted . | . . . Installed . | . . . Triggered . | . . . Machines | -11 -10 -9 ---------- Run | Jun Mat Mat Machines Disabled . | . . . Max in Single Turn . | . . . Machines Repaired . | . . . Machines Sabotaged . | . . . Overloaded Fab Kills . | . . . Hacking | -11 -10 -9 --------- Run | Jun Mat Mat Machines Accessed . | . . . Terminals . | . . . Fabricators . | . . . Repair Stations . | . . . Recycling Units . | . . . Scanalyzers . | . . . Garrison Access . | . . . Total Hacks . | . . . Successful . | . . . Failed . | . . . Catastrophic . | . . . Database Lockouts . | . . . Manual . | . . . Terminals . | . . . Fabricators . | . . . Repair Stations . | . . . Recycling Units . | . . . Scanalyzers . | . . . Garrison Access . | . . . Terminal Hacks . | . . . Fabricator Hacks . | . . . Repair Station Hacks . | . . . Recycling Unit Hacks . | . . . Scanalyzer . | . . . Garrison Access Hacks . | . . . Unauthorized Hacks . | . . . Terminals . | . . . Fabricators . | . . . Repair Stations . | . . . Recycling Units . | . . . Scanalyzers . | . . . Garrison Access . | . . . Data Cores Recovered . | . . . Used . | . . . Hacking Detections . | . . . Full Trace Events . | . . . Feedback Events . | . . . Feedback Blocked . | . . . Robot Schematics Acquired . | . . . Robots Built . | . . . Authchips . | . . . Time . | . . . Total Robot Build Rating . | . . . Part Schematics Acquired . | . . . Parts Built . | . . . Authchips . | . . . Time . | . . . Total Part Build Rating . | . . . Parts Repaired . | . . . Time . | . . . Parts Recycled . | . . . Recycled Matter . | . . . Retrieved Matter . | . . . Retrieved Components . | . . . Parts Scanalyzed . | . . . Part Schematics Acquired . | . . . Parts Damaged . | . . . Bothacking | -11 -10 -9 ------------ Run | Jun Mat Mat Used RIF Installer . | . . . Robots Hacked . | . . . Non-combat . | . . . Combat . | . . . Robot Hacks Applied . | . . . Relay Couplers Released . | . . . Fabnet Peak Effective % . | . . . Robots Rewired . | . . . Allies Hacked . | . . . Hacks Repelled . | . . . Allies | -11 -10 -9 -------- Run | Jun Mat Mat Total Allies . | . . . Largest Group . | . . . Highest-Rated Group . | . . . Highest-Rated Ally . | . . . Total Orders . | . . . Ally Attacks . | . . . Total Damage . | . . . Kills . | . . . Allies Corrupted . | . . . Allies Melted . | . . . Intel | -11 -10 -9 ------- Run | Jun Mat Mat Robot Analysis Total . | . . . Derelict Logs Recovered . | . . . Drone Launches . | . . . Drone Recoveries . | . . . Exploration | -11 -10 -9 ------------- Run | Jun Mat Mat Turns Passed 989 | 114 344 531 Spaces Moved 489 | 57 168 264 Core 10 | 10 . . Treads 316 | 47 168 101 Legs 163 | . . 163 Wheels . | . . . Hover . | . . . Flight . | . . . Fastest Speed 50 | 50 160 120 Average Speed 144 | 143 160 135 Slowest Speed 190 | 160 160 190 Overloaded Moves . | . . . Propulsion Burnouts . | . . . Robots Hopped . | . . . Cave-ins Triggered . | . . . Exploration Rate (%) 21 | 4 31 30 Regions Visited 2 Branch Regions . Pre-discovered Areas . | . . . Known Exits Taken 2 | 1 1 . Unknown Exits Taken . | . . . Scrap Searched . | . . . Spaces Dug . | . . . Terrain Destroyed 3 | . . 3 Melee . | . . . Projectile 3 | . . 3 AOE . | . . . Terrain Rammed . | . . . Walls Destroyed . | . . . Machines Disabled . | . . . Actions | -11 -10 -9 --------- Run | Jun Mat Mat Total 672 | 86 203 383 Wait 87 | 16 7 64 Move 487 | 56 167 264 Hop . | . . . Pick Up 20 | 7 6 7 Fast Attach 15 | 7 1 7 Attach 4 | . . 4 Detach . | . . . Swap 2 | . 1 1 Drop 10 | . 1 9 Fire 47 | . 20 27 Melee . | . . . Ram . | . . . Kick . | . . . Crush . | . . . Escape Stasis . | . . . Rewire . | . . . Trap . | . . . Miscellaneous . | . . . Route ------- -11/Junkyard -10/Materials -9/Materials History --------- Turn | Location | Event 10 | -11/Junkyard | Identified exit to Materials 10 | -11/Junkyard | Discovered exit to Materials (range 16) 115 | -11/Junkyard | Entered Materials 115 | -10/Materials | Evolved 1 slot: Utility x1 315 | -10/Materials | Build established: Hacker-Mutant 404 | -10/Materials | Identified exit to Materials 404 | -10/Materials | Discovered exit to Materials (range 3) 459 | -10/Materials | Entered another Materials area 459 | -9/Materials | Evolved 2 slots: Propulsion x1, Utility x1 990 | -9/Materials | Self-destructed Last Messages --------------- 00960_ K-01 Serf collects debris. 00976_ Y-45 Defender heat damages Imp. Ion Engine. 00978_ Ion Engine destroyed. 00979_ K-01 Serf collects debris. 00981_ Y-45 Defender heat damages Lgt. Treads. 00981_ Destroyed Heat Sink. 00984_ Overheating: Energy bleed (-15). 00984_ Y-45 Defender heat spikes uncontrollably. 00984_ Melted Hvy. Assault Rifle. 00984_ Lgt. Armor Plating melted. 00984_ Y-45 Defender destroyed. 00984_ K-01 Serf collects debris. 00987_ S-10 Pest destroyed. 00987_ K-01 Serf collects debris. 00988_ Power failure, Ion Engine shutdown. 00988_ K-01 Serf collects debris. 00989_ Overheating: Hrd. Light Armor Plating damaged (-81). 00989_ Overheating: Carbon-fiber Leg damaged (-42). 00989_ Overheating: Carbon-fiber Leg damaged (-72). 00989_ Overheating: Carbon-fiber Leg damaged (-37). Map ----- +----------------------------------------------------+ | ?????????????????????????????????????????????????? | | ?????????????????????????????????????????????????? | | ?????????????????????????????????????????????????? | | ?????????????????????????????????????????????????? | | ?????????????????????????????????????????????????? | | ?????????????????????????????????????????????????? | | ?????????????????????????????????????????????????? | | ?????????????????????????????????????????????????? | | ?????????????????????????????????????????????????? | | ?????????????????????????????????????????????????? | | ?????????????????????????????????????????????????? | | ?????????????????????????????????????????? ??????? | | ?????????????????????????????????????????????????? | | ?????????????????????????????????????????????????? | | ??????????????????#???????????? ? ? ?????????????? | | ???????????????????????????#?#?#???#?????????????? | | ?????????????????????? ??????# #?????????????????? | | ????????????????????????????## ##???#????????????? | | ???????????? ???????########;#+##?????? ?????????? | | ????????????????????# %%[ #????????????????? | | ??????????????????### ]] #?????? ?????"???? | | ????????????? ????#"" k ]%] #????#????????? ?? | | ??????????????????#"Y *]] #???#########????? | | ??????????????????#"" #???# #????? | | ????????????????????# =% k #?#?# #??? | | ???????????????????## @[t% ##??# """ #??# | | ?????????? ??# #######+########## """ #??# | | ?????????????+ %*# [ ## """ ##?# | | ???????????? # ###### # = ## #??# | | ????????????????????????# # """ #####+####### | | ?????????? ?????????????# / """ #?# ! | | ????????????????????#?#?# # """ ### | | ???????????#???? ????#??# # / | | ???????????????????#????# ########## | | ?????????????##???????#?# ##?????#?# """ | | ???????????????????#????# #???#????##"" [ """ | | ????????????????????????# #?????????#"T """ | | ????????????????????????# ##?#??????#"" | | ???????????????? ???????# #????????## | | ????????????????????????# ##????? ??# | | ????????????????????????# #?????????###+###+#### | | ???????????????????????? ??? ?? ?? ??# | | ???????????????????????? ????????????# | | ???????????????????????? T ????????????# | | ???????????????????????? ????????????# | | ????????????????????????? ? ????????????# | | ????????????????????????????????????????# | | ???????????????????????????????? ???????# | | ????????????????????????????????????????# | | ????????????????????????????????????????########/# | +----------------------------------------------------+ Best States ------------- Heat Dissipation 38 Energy Generation 10 Energy Capacity 250 Matter Stores 300 Matter Capacity 300 Sight Range 16 Terrain Scan Range 16 Terrain Scan Density 10 Armor Coverage 150 Resistance: KI 35 Resistance: TH 35 Resistance: EX 35 Resistance: EM 35 Resistance: I 35 Resistance: S 35 Resistance: P 35 Evasion (%) 55 Recoil Reduction 3 Offensive Hacking 20 Item Schematics ----------------- None Robot Schematics ------------------ None Fabricated ------------ Nothing Alien Tech Used ----------------- None Achievements -------------- None Challenges ------------ None Game ------ Seed OpticalCoilBrace Manual? 0 Play Time 00:09:02 Cumulative 17.0 hours Start 2023.03.27 @ 05:42:10 End 2023.03.27 @ 05:49:45 Sessions 1 Manual Loads 0 Difficulty Explorer Special Mode None Game No. 30 Rogue 6 Adventurer 0 Explorer 24 Win Type - Total 0 Types 0/0/0/0/0/0/0/0/0 Lore% 7 Gallery% 32 Achievement% 22 Wizard Run 0 Options --------- ASCII 0 Keyboard 0 Movement Mouse Keybinds 0 Fullscreen 0 Font 28/X11 Map View 76x50 Tactical HUD 1 Map Filters NONE Filters SATURATION(60) Steam 1 RUN: 84296ad1-975d-455f-9eeb-4dcab7eef4f3